fUSD/lending_fUSD_20240408
["ID","MTS","AMOUNT","RATE_DAILY","PERIOD"]
[321822853,1712536259503,-563.53237567,0.00020976,2]
[321822854,1712536259512,-500.0,0.00020976,2]
[321822855,1712536259522,-500.0,0.00020976,2]
[321822856,1712536259531,-500.0,0.00020976,2]
[321822857,1712536259540,-378.04988881,0.00020976,2]
[321822858,1712536259549,-500.0,0.00020976,2]
[321822859,1712536259558,-500.0,0.00020976,2]
[321822860,1712536259567,-500.0,0.00020976,2]
[321822861,1712536259577,-500.0,0.00020976,2]
[321822862,1712536259586,-1213.25,0.00020976,2]
[321822863,1712536259595,-1213.25,0.00020976,2]
[321822864,1712536259604,-1213.25,0.00020976,2]
[321822865,1712536259614,-1213.25,0.00020976,2]
[321822866,1712536259623,-1234.48,0.00020976,2]
[321822867,1712536259632,-1234.48,0.00020976,2]
[321822868,1712536259641,-1234.48,0.00020976,2]
[321822869,1712536259709,-1234.48,0.00020976,2]
[321822870,1712536259718,-704.42,0.00020976,2]
[321822871,1712536259727,-704.42,0.00020976,2]
[321822872,1712536259736,-704.42,0.00020976,2]
[321822873,1712536259745,-704.42,0.00020976,2]
[321822874,1712536259753,-1141.76,0.00020976,2]
[321822875,1712536259762,-1141.76,0.00020976,2]
[321822876,1712536259771,-1141.76,0.00020976,2]
[321822877,1712536259780,-1141.76,0.00020976,2]
[321822878,1712536259789,-892.65,0.00020976,2]
[321822879,1712536259798,-892.65,0.00020976,2]
[321822880,1712536259806,-892.65,0.00020976,2]
[321822881,1712536259815,-892.65,0.00020976,2]
[321822882,1712536259824,-845.24,0.00020976,2]
[321822883,1712536259833,-845.24,0.00020976,2]
[321822884,1712536259841,-845.24,0.00020976,2]
[321822885,1712536259850,-845.24,0.00020976,2]
[321822886,1712536259859,-1865.67,0.00020976,2]
[321822887,1712536259868,-1865.67,0.00020976,2]
[321822888,1712536259877,-1865.67,0.00020976,2]
[321822889,1712536259886,-1865.67,0.00020976,2]
[321822890,1712536259895,-894.57,0.00020976,2]
[321822891,1712536259904,-894.57,0.00020976,2]
[321822892,1712536259913,-894.57,0.00020976,2]
[321822893,1712536259923,-894.57,0.00020976,2]
[321822894,1712536259932,-809.97,0.00020976,2]
[321822895,1712536259941,-809.97,0.00020976,2]
[321822896,1712536259950,-809.97,0.00020976,2]
[321822897,1712536259959,-809.97,0.00020976,2]
[321822898,1712536259968,-507.34,0.00020976,2]
[321822899,1712536259977,-507.34,0.00020976,2]
[321822900,1712536259986,-507.34,0.00020976,2]
[321822901,1712536259996,-507.34,0.00020976,2]
[321822902,1712536260005,-1307.7,0.00020976,2]
[321822903,1712536260014,-923.07,0.00020976,2]
[321822904,1712536260023,-204.42414029,0.00020976,2]
[321822905,1712536260032,-1456.98,0.00020977,2]
[321822906,1712536260040,-1456.98,0.00020977,2]
[321822907,1712536260050,-1456.98,0.00020977,2]
[321822908,1712536260060,-1456.98,0.00020977,2]
[321822909,1712536260069,-1456.98,0.00020977,2]
[321822910,1712536260079,-500.0,0.00020977,2]
[321822911,1712536260089,-500.0,0.00020977,2]
[321822912,1712536260098,-500.0,0.00020977,2]
[321822913,1712536260107,-500.0,0.00020977,2]
[321822914,1712536260117,-500.0,0.00020977,2]
[321822915,1712536260126,-500.0,0.00020977,2]
[321822916,1712536260135,-500.0,0.00020977,2]
[321822917,1712536260144,-500.0,0.00020977,2]
[321822918,1712536260154,-500.0,0.00020977,2]
[321822919,1712536260163,-500.0,0.00020977,2]
[321822920,1712536260174,-500.0,0.00020977,2]
[321822921,1712536260183,-500.0,0.00020977,2]
[321822922,1712536260192,-500.0,0.00020977,2]
[321822923,1712536260201,-500.0,0.00020977,2]
[321822924,1712536260211,-1213.25,0.00020977,2]
[321822925,1712536260220,-1213.25,0.00020977,2]
[321822926,1712536260229,-1213.25,0.00020977,2]
[321822927,1712536260238,-1213.25,0.00020977,2]
[321822928,1712536260247,-1213.25,0.00020977,2]
[321822929,1712536260256,-1213.309928,0.00020977,2]
[321822930,1712536260266,-1234.48,0.00020977,2]
[321822931,1712536260275,-1234.48,0.00020977,2]
[321822932,1712536260284,-1234.48,0.00020977,2]
[321822933,1712536260295,-1234.48,0.00020977,2]
[321822934,1712536260304,-1234.48,0.00020977,2]
[321822935,1712536260313,-1234.61291398,0.00020977,2]
[321822936,1712536260321,-704.42,0.00020977,2]
[321822937,1712536260330,-704.42,0.00020977,2]
[321822938,1712536260339,-704.42,0.00020977,2]
[321822939,1712536260349,-704.42,0.00020977,2]
[321822940,1712536260358,-704.42,0.00020977,2]
[321822941,1712536260367,-704.48186437,0.00020977,2]
[321822942,1712536260376,-1141.76,0.00020977,2]
[321822943,1712536260387,-1141.76,0.00020977,2]
[321822944,1712536260396,-1141.76,0.00020977,2]
[321822945,1712536260405,-1141.76,0.00020977,2]
[321822946,1712536260414,-1141.76,0.00020977,2]
[321822947,1712536260425,-1141.9146032,0.00020977,2]
[321822948,1712536260434,-892.65,0.00020977,2]
[321822949,1712536260443,-892.65,0.00020977,2]
[321822950,1712536260456,-892.65,0.00020977,2]
[321822951,1712536260468,-892.65,0.00020977,2]
[321822952,1712536260478,-892.65,0.00020977,2]
[321822953,1712536260488,-892.75637423,0.00020977,2]
[321822954,1712536260498,-845.24,0.00020977,2]
[321822955,1712536260508,-845.24,0.00020977,2]
[321822956,1712536260517,-845.24,0.00020977,2]
[321822957,1712536260528,-845.24,0.00020977,2]
[321822958,1712536260539,-845.24,0.00020977,2]
[321822959,1712536260549,-845.4743627,0.00020977,2]
[321822960,1712536260559,-1865.67,0.00020977,2]
[321822961,1712536260569,-1865.67,0.00020977,2]
[321822962,1712536260579,-1865.67,0.00020977,2]
[321822963,1712536260589,-1865.67,0.00020977,2]
[321822964,1712536260599,-1865.67,0.00020977,2]
[321822965,1712536260609,-1865.7995183,0.00020977,2]
[321822966,1712536260619,-894.57,0.00020977,2]
[321822967,1712536260629,-894.57,0.00020977,2]
[321822968,1712536260639,-894.57,0.00020977,2]
[321822969,1712536260649,-894.57,0.00020977,2]
[321822970,1712536260659,-894.57,0.00020977,2]
[321822971,1712536260674,-894.72341461,0.00020977,2]
[321822972,1712536260692,-809.97,0.00020977,2]
[321822973,1712536260702,-809.97,0.00020977,2]
[321822974,1712536260712,-809.97,0.00020977,2]
[321822975,1712536260722,-809.97,0.00020977,2]
[321822976,1712536260731,-809.97,0.00020977,2]
[321822977,1712536260741,-810.03602975,0.00020977,2]
[321822978,1712536260751,-507.34,0.00020977,2]
[321822979,1712536260760,-507.34,0.00020977,2]
[321822980,1712536260771,-507.34,0.00020977,2]
[321822981,1712536260781,-507.34,0.00020977,2]
[321822982,1712536260791,-507.34,0.00020977,2]
[321822983,1712536260801,-507.52962162,0.00020977,2]
[321822984,1712536260811,-1456.98,0.00020978,2]
[321822985,1712536260820,-500.0,0.00020978,2]
[321822986,1712536260831,-500.0,0.00020978,2]
[321822987,1712536260841,-500.0,0.00020978,2]
[321822988,1712536260851,-500.0,0.00020978,2]
[321822989,1712536260860,-1456.98,0.00020984,2]
[321822990,1712536260870,-500.0,0.00020984,2]
[321822991,1712536260879,-500.0,0.00020984,2]
[321822992,1712536260888,-340.23899317,0.00020992,2]
[321822993,1712536260898,-554.87,0.00020992,2]
[321822994,1712536260907,-538.64693613,0.00020992,2]
[321822995,1712536260917,-591.65,0.00020992,2]
[321822996,1712536260934,-500.0,0.00020992,2]
[321822997,1712536260943,-500.0,0.00020992,2]
[321822998,1712536260953,-500.0,0.00020992,2]
[321822999,1712536260962,-500.0,0.00020992,2]
[321823000,1712536260971,-209.64253208,0.00020992,2]
[321823001,1712536260981,-500.0,0.00020992,2]
[321823002,1712536260990,-500.0,0.00020992,2]
[321823003,1712536260999,-500.0,0.00020992,2]
[321823004,1712536261009,-500.0,0.00020992,2]
[321823005,1712536261019,-586.78146212,0.00020992,2]
[321823006,1712536261029,-517.55,0.00020992,2]
[321823007,1712536261039,-500.0,0.00020992,2]
[321823008,1712536261049,-500.0,0.00020992,2]
[321823009,1712536261059,-500.0,0.00020992,2]
[321823010,1712536261068,-500.0,0.00020992,2]
[321823011,1712536261078,-500.0,0.00020992,2]
[321823012,1712536261087,-500.0,0.00020992,2]
[321823013,1712536261096,-500.0,0.00020992,2]
[321823014,1712536261106,-518.31,0.00020992,2]
[321823015,1712536261116,-500.0,0.00020992,2]
[321823016,1712536261125,-500.0,0.00020992,2]
[321823017,1712536261135,-500.0,0.00020992,2]
[321823018,1712536261144,-500.0,0.00020992,2]
[321823019,1712536261154,-538.97,0.00020992,2]
[321823020,1712536261164,-500.0,0.00020992,2]
[321823021,1712536261176,-500.0,0.00020992,2]
[321823022,1712536261186,-586.69,0.00020992,2]
[321823023,1712536261195,-500.0,0.00020992,2]
[321823024,1712536261204,-500.0,0.00020992,2]
[321823025,1712536261213,-1456.98,0.00020993,2]
[321823026,1712536261222,-500.0,0.00020993,2]
[321823027,1712536261232,-500.0,0.00020993,2]
[321823028,1712536261242,-500.0,0.00020993,2]
[321823029,1712536261251,-1456.98,0.00020994,2]
[321823030,1712536261261,-1456.98,0.00020994,2]
[321823031,1712536261271,-500.0,0.00020994,2]
[321823032,1712536261282,-500.0,0.00020994,2]
[321823033,1712536261292,-500.0,0.00020994,2]
[321823034,1712536261301,-500.0,0.00020994,2]
[321823035,1712536261310,-500.0,0.00020994,2]
[321823036,1712536261321,-500.0,0.00020994,2]
[321823037,1712536261331,-3686.37576712,0.00020995,2]
[321823038,1712536261341,-1467.62363901,0.00020995,2]
[321823039,1712536261350,-1456.98,0.00020995,2]
[321823040,1712536261360,-1456.98,0.00020995,2]
[321823041,1712536261370,-1456.98,0.00020995,2]
[321823042,1712536261379,-1456.98,0.00020995,2]
[321823043,1712536261389,-1456.98,0.00020995,2]
[321823044,1712536261399,-1456.98347241,0.00020995,2]
[321823045,1712536261408,-500.0,0.00020995,2]
[321823046,1712536261417,-500.0,0.00020995,2]
[321823047,1712536261432,-500.0,0.00020995,2]
[321823048,1712536261444,-383.3385836,0.00020995,2]
[321823049,1712536261459,-500.0,0.00020995,2]
[321823050,1712536261467,-500.0,0.00020995,2]
[321823051,1712536261478,-500.0,0.00020995,2]
[321823052,1712536261487,-317.85,0.00020995,2]
[321823053,1712536261497,-500.0,0.00020995,2]
[321823054,1712536261506,-500.0,0.00020995,2]
[321823055,1712536261515,-500.0,0.00020995,2]
[321823056,1712536261525,-500.0,0.00020995,2]
[321823057,1712536261535,-424.34,0.00020995,2]
[321823058,1712536261544,-737.9,0.00020997,2]
[321823059,1712536261553,-737.9,0.00020997,2]
[321823060,1712536261562,-500.0,0.00020997,2]
[321823061,1712536261571,-509.75943806,0.00020997,2]
[321823062,1712536261580,-523.06,0.00020997,2]
[321823063,1712536261590,-523.06,0.00020997,2]
[321823064,1712536261599,-650.78,0.00020997,2]
[321823065,1712536261608,-650.78,0.00020997,2]
[321823066,1712536261618,-867.21,0.00020997,2]
[321823067,1712536261627,-867.21,0.00020997,2]
[321823068,1712536261636,-838.78,0.00020997,2]
[321823069,1712536261644,-838.78,0.00020997,2]
[321823070,1712536261653,-504.98,0.00020997,2]
[321823071,1712536261662,-504.98,0.00020997,2]
[321823072,1712536261673,-671.95,0.00020997,2]
[321823073,1712536261683,-671.95,0.00020997,2]
[321823074,1712536261692,-592.73,0.00020997,2]
[321823075,1712536261702,-592.73,0.00020997,2]
[321823076,1712536261711,-976.68,0.00020997,2]
[321823077,1712536261720,-976.68,0.00020997,2]
[321823078,1712536261730,-4816.37,0.00020997,2]
[321823079,1712536261740,-4816.37,0.00020997,2]
[321823080,1712536261750,-500.0,0.00020997,2]
[321823081,1712536261761,-500.0,0.00020997,2]
[321823082,1712536261770,-748.0,0.00020997,2]
[321823083,1712536261782,-748.0,0.00020997,2]
[321823084,1712536261792,-790.57,0.00020997,2]
[321823085,1712536261803,-790.57,0.00020997,2]
[321823086,1712536261812,-732.92,0.00020997,2]
[321823087,1712536261822,-732.92,0.00020997,2]
[321823088,1712536261832,-540.03,0.00020997,2]
[321823089,1712536261841,-540.03,0.00020997,2]
[321823090,1712536261850,-500.0,0.00020997,2]
[321823091,1712536261859,-500.0,0.00020997,2]
[321823092,1712536261868,-622.5,0.00020997,2]
[321823093,1712536261878,-622.5,0.00020997,2]
[321823094,1712536261888,-1252.96,0.00020997,2]
[321823095,1712536261898,-1252.96,0.00020997,2]
[321823096,1712536261907,-522.59,0.00020997,2]
[321823097,1712536261916,-522.59,0.00020997,2]
[321823098,1712536261931,-596.08,0.00020997,2]
[321823099,1712536261940,-596.08,0.00020997,2]
[321823100,1712536261950,-884.46,0.00020997,2]
[321823101,1712536261959,-884.46,0.00020997,2]
[321823102,1712536261968,-1531.53,0.00020997,2]
[321823103,1712536261977,-1531.53,0.00020997,2]
[321823104,1712536261986,-614.83,0.00020997,2]
[321823105,1712536261995,-614.83,0.00020997,2]
[321823106,1712536262004,-1307.7,0.00020997,2]
[321823107,1712536262014,-1307.7,0.00020997,2]
[321823108,1712536262023,-1307.7,0.00020997,2]
[321823109,1712536262032,-992.07,0.00020997,2]
[321823110,1712536262041,-992.07,0.00020997,2]
[321823111,1712536262050,-1051.92,0.00020997,2]
[321823112,1712536262059,-1051.92,0.00020997,2]
[321823113,1712536262068,-685.45,0.00020997,2]
[321823114,1712536262077,-685.45,0.00020997,2]
[321823115,1712536262086,-1504.75,0.00020997,2]
[321823116,1712536262095,-1504.75,0.00020997,2]
[321823117,1712536262105,-923.07,0.00020997,2]
[321823118,1712536262114,-923.07,0.00020997,2]
[321823119,1712536262123,-923.07,0.00020997,2]
[321823120,1712536262133,-557.89,0.00020997,2]
[321823121,1712536262143,-557.89,0.00020997,2]
[321823122,1712536262152,-647.24,0.00020997,2]
[321823123,1712536262160,-647.24,0.00020997,2]
[321823124,1712536262173,-507.0,0.00020997,2]
[321823125,1712536262183,-507.0,0.00020997,2]
[321823126,1712536262192,-553.64,0.00020997,2]
[321823127,1712536262202,-553.64,0.00020997,2]
[321823128,1712536262211,-555.41,0.00020997,2]
[321823129,1712536262221,-555.41,0.00020997,2]
[321823130,1712536262231,-508.24,0.00020997,2]
[321823131,1712536262240,-508.24,0.00020997,2]
[321823132,1712536262249,-982.46,0.00020997,2]
[321823133,1712536262259,-982.46,0.00020997,2]
[321823134,1712536262268,-373846.81657955,0.00020998,2]
[321823135,1712536262278,-554.87,0.00020998,2]
[321823136,1712536262287,-554.87,0.00020998,2]
[321823137,1712536262297,-554.87,0.00020998,2]
[321823138,1712536262306,-591.65,0.00020998,2]
[321823139,1712536262316,-591.65,0.00020998,2]
[321823140,1712536262326,-591.65,0.00020998,2]
[321823141,1712536262335,-500.0,0.00020998,2]
[321823142,1712536262344,-500.0,0.00020998,2]
[321823143,1712536262354,-500.0,0.00020998,2]
[321823144,1712536262363,-500.0,0.00020998,2]
[321823145,1712536262373,-500.0,0.00020998,2]
[321823146,1712536262382,-310639.76963834,0.00020998,2]
[321823147,1712536262392,-500.0,0.00020998,2]
[321823148,1712536262401,-500.0,0.00020998,2]
[321823149,1712536262410,-500.0,0.00020998,2]
[321823150,1712536262419,-500.0,0.00020998,2]
[321823151,1712536262430,-500.0,0.00020998,2]
[321823152,1712536262439,-500.0,0.00020998,2]
[321823153,1712536262448,-500.0,0.00020998,2]
[321823154,1712536262461,-500.0,0.00020998,2]
[321823155,1712536262470,-500.0,0.00020998,2]
[321823156,1712536262480,-500.0,0.00020998,2]
[321823157,1712536262490,-737.9,0.00020998,2]
[321823158,1712536262500,-737.9,0.00020998,2]
[321823159,1712536262510,-737.9,0.00020998,2]
[321823160,1712536262520,-500.0,0.00020998,2]
[321823161,1712536262532,-500.0,0.00020998,2]
[321823162,1712536262543,-500.0,0.00020998,2]
[321823163,1712536262552,-500.0,0.00020998,2]
[321823164,1712536262561,-500.0,0.00020998,2]
[321823165,1712536262571,-373.45719892,0.00020998,2]
[321823166,1712536262581,-243.34563952,0.00020998,2]
[321823167,1712536262590,-517.55,0.00020998,2]
[321823168,1712536262600,-517.55,0.00020998,2]
[321823169,1712536262610,-517.55,0.00020998,2]
[321823170,1712536262620,-500.0,0.00020998,2]
[321823171,1712536262629,-500.0,0.00020998,2]
[321823172,1712536262639,-500.0,0.00020998,2]
[321823173,1712536262649,-523.06,0.00020998,2]
[321823174,1712536262658,-523.06,0.00020998,2]
[321823175,1712536262667,-523.06,0.00020998,2]
[321823176,1712536262679,-377.86137928,0.00020998,2]
[321823177,1712536262689,-500.0,0.00020998,2]
[321823178,1712536262698,-500.0,0.00020998,2]
[321823179,1712536262707,-183.78071498,0.00020998,2]
[321823180,1712536262716,-650.78,0.00020998,2]
[321823181,1712536262725,-650.78,0.00020998,2]
[321823182,1712536262734,-172.00368004,0.00020998,2]
[321823183,1712536262743,-650.78,0.00020998,2]
[321823184,1712536262752,-867.21,0.00020998,2]
[321823185,1712536262761,-867.21,0.00020998,2]
[321823186,1712536262770,-867.21,0.00020998,2]
[321823187,1712536262779,-838.78,0.00020998,2]
[321823188,1712536262788,-838.78,0.00020998,2]
[321823189,1712536262797,-838.78,0.00020998,2]
[321823190,1712536262806,-500.0,0.00020998,2]
[321823191,1712536262815,-500.0,0.00020998,2]
[321823192,1712536262824,-500.0,0.00020998,2]
[321823193,1712536262833,-504.98,0.00020998,2]
[321823194,1712536262842,-504.98,0.00020998,2]
[321823195,1712536262851,-504.98,0.00020998,2]
[321823196,1712536262860,-500.0,0.00020998,2]
[321823197,1712536262870,-500.0,0.00020998,2]
[321823198,1712536262879,-496.53279386,0.00020998,2]
[321823199,1712536262889,-671.95,0.00020998,2]
[321823200,1712536262898,-671.95,0.00020998,2]
[321823201,1712536262907,-671.95,0.00020998,2]
[321823202,1712536262917,-500.0,0.00020998,2]
[321823203,1712536262928,-500.0,0.00020998,2]
[321823204,1712536262937,-500.0,0.00020998,2]
[321823205,1712536262946,-592.73,0.00020998,2]
[321823206,1712536262956,-592.73,0.00020998,2]
[321823207,1712536262966,-592.73,0.00020998,2]
[321823208,1712536262975,-976.68,0.00020998,2]
[321823209,1712536262985,-976.68,0.00020998,2]
[321823210,1712536262994,-976.68,0.00020998,2]
[321823211,1712536263003,-518.31,0.00020998,2]
[321823212,1712536263013,-518.31,0.00020998,2]
[321823213,1712536263022,-518.31,0.00020998,2]
[321823214,1712536263032,-4816.37,0.00020998,2]
[321823215,1712536263042,-4816.37,0.00020998,2]
[321823216,1712536263051,-4816.37,0.00020998,2]
[321823217,1712536263061,-500.0,0.00020998,2]
[321823218,1712536263070,-500.0,0.00020998,2]
[321823219,1712536263080,-500.0,0.00020998,2]
[321823220,1712536263138,-500.0,0.00020998,2]
[321823221,1712536263149,-500.0,0.00020998,2]
[321823222,1712536263159,-500.0,0.00020998,2]
[321823223,1712536263170,-500.0,0.00020998,2]
[321823224,1712536263182,-500.0,0.00020998,2]
[321823225,1712536263195,-500.0,0.00020998,2]
[321823226,1712536263205,-500.0,0.00020998,2]
[321823227,1712536263216,-748.0,0.00020998,2]
[321823228,1712536263226,-500.0,0.00020998,2]
[321823229,1712536263236,-748.0,0.00020998,2]
[321823230,1712536263246,-591.84052083,0.00020998,2]
[321823231,1712536263256,-748.0,0.00020998,2]
[321823232,1712536263267,-500.0,0.00020998,2]
[321823233,1712536263277,-500.0,0.00020998,2]
[321823234,1712536263287,-500.0,0.00020998,2]
[321823235,1712536263298,-790.57,0.00020998,2]
[321823236,1712536263309,-790.57,0.00020998,2]
[321823237,1712536263319,-790.57,0.00020998,2]
[321823238,1712536263332,-538.97,0.00020998,2]
[321823239,1712536263343,-538.97,0.00020998,2]
[321823240,1712536263353,-538.97,0.00020998,2]
[321823241,1712536263363,-732.92,0.00020998,2]
[321823242,1712536263373,-732.92,0.00020998,2]
[321823243,1712536263384,-732.92,0.00020998,2]
[321823244,1712536263394,-540.03,0.00020998,2]
[321823245,1712536263404,-540.03,0.00020998,2]
[321823246,1712536263415,-540.03,0.00020998,2]
[321823247,1712536263427,-500.0,0.00020998,2]
[321823248,1712536263437,-500.0,0.00020998,2]
[321823249,1712536263448,-500.0,0.00020998,2]
[321823250,1712536263461,-622.5,0.00020998,2]
[321823251,1712536263472,-622.5,0.00020998,2]
[321823252,1712536263483,-622.5,0.00020998,2]
[321823253,1712536263493,-500.0,0.00020998,2]
[321823254,1712536263503,-500.0,0.00020998,2]
[321823255,1712536263513,-500.0,0.00020998,2]
[321823256,1712536263523,-1252.96,0.00020998,2]
[321823257,1712536263534,-1252.96,0.00020998,2]
[321823258,1712536263544,-1252.96,0.00020998,2]
[321823259,1712536263555,-500.0,0.00020998,2]
[321823260,1712536263566,-492.8647409,0.00020998,2]
[321823261,1712536263575,-522.59,0.00020998,2]
[321823262,1712536263585,-522.59,0.00020998,2]
[321823263,1712536263594,-522.59,0.00020998,2]
[321823264,1712536263604,-596.08,0.00020998,2]
[321823265,1712536263615,-596.08,0.00020998,2]
[321823266,1712536263626,-596.08,0.00020998,2]
[321823267,1712536263639,-586.69,0.00020998,2]
[321823268,1712536263650,-586.69,0.00020998,2]
[321823269,1712536263660,-586.69,0.00020998,2]
[321823270,1712536263672,-884.46,0.00020998,2]
[321823271,1712536263682,-884.46,0.00020998,2]
[321823272,1712536263693,-884.46,0.00020998,2]
[321823273,1712536263703,-500.0,0.00020998,2]
[321823274,1712536263713,-274.45686971,0.00020998,2]
[321823275,1712536263723,-1531.53,0.00020998,2]
[321823276,1712536263732,-1531.53,0.00020998,2]
[321823277,1712536263742,-1531.53,0.00020998,2]
[321823278,1712536263751,-614.83,0.00020998,2]
[321823279,1712536263760,-614.83,0.00020998,2]
[321823280,1712536263770,-614.83,0.00020998,2]
[321823281,1712536263779,-1307.7,0.00020998,2]
[321823282,1712536263789,-1307.7,0.00020998,2]
[321823283,1712536263798,-1307.7,0.00020998,2]
[321823284,1712536263808,-1307.7,0.00020998,2]
[321823285,1712536263818,-1307.86828816,0.00020998,2]
[321823286,1712536263828,-992.07,0.00020998,2]
[321823287,1712536263838,-992.07,0.00020998,2]
[321823288,1712536263847,-992.07,0.00020998,2]
[321823289,1712536263857,-1051.92,0.00020998,2]
[321823290,1712536263867,-1051.92,0.00020998,2]
[321823291,1712536263877,-1051.92,0.00020998,2]
[321823292,1712536263887,-685.45,0.00020998,2]
[321823293,1712536263897,-685.45,0.00020998,2]
[321823294,1712536263907,-685.45,0.00020998,2]
[321823295,1712536263916,-1504.75,0.00020998,2]
[321823296,1712536263926,-1504.75,0.00020998,2]
[321823297,1712536263936,-1504.75,0.00020998,2]
[321823298,1712536263945,-923.07,0.00020998,2]
[321823299,1712536263956,-923.07,0.00020998,2]
[321823300,1712536263965,-923.07,0.00020998,2]
[321823301,1712536263975,-923.07,0.00020998,2]
[321823302,1712536263985,-923.24831389,0.00020998,2]
[321823303,1712536263995,-557.89,0.00020998,2]
[321823304,1712536264005,-557.89,0.00020998,2]
[321823305,1712536264014,-557.89,0.00020998,2]
[321823306,1712536264025,-647.24,0.00020998,2]
[321823307,1712536264035,-647.24,0.00020998,2]
[321823308,1712536264046,-647.24,0.00020998,2]
[321823309,1712536264055,-500.0,0.00020998,2]
[321823310,1712536264065,-500.0,0.00020998,2]
[321823311,1712536264075,-165.65931896,0.00020998,2]
[321823312,1712536264085,-507.0,0.00020998,2]
[321823313,1712536264096,-507.0,0.00020998,2]
[321823314,1712536264105,-507.0,0.00020998,2]
[321823315,1712536264116,-553.64,0.00020998,2]
[321823316,1712536264127,-553.64,0.00020998,2]
[321823317,1712536264138,-553.64,0.00020998,2]
[321823318,1712536264147,-555.41,0.00020998,2]
[321823319,1712536264157,-555.41,0.00020998,2]
[321823320,1712536264167,-555.41,0.00020998,2]
[321823321,1712536264178,-508.24,0.00020998,2]
[321823322,1712536264188,-508.24,0.00020998,2]
[321823323,1712536264197,-508.24,0.00020998,2]
[321823324,1712536264206,-982.46,0.00020998,2]
[321823325,1712536264216,-982.46,0.00020998,2]
[321823326,1712536264226,-150.01,0.00020999,2]
[321823327,1712536264236,-1821.67659291,0.00020999,2]
[321823328,1712536264246,-233321.0122091,0.00020999,2]
[321823329,1712536264256,-538789.79464755,0.00020999,2]
[321823330,1712536264267,-554.87,0.00020999,2]
[321823331,1712536264277,-554.87,0.00020999,2]
[321823332,1712536264287,-554.87,0.00020999,2]
[321823333,1712536264297,-554.87,0.00020999,2]
[321823334,1712536264307,-554.87,0.00020999,2]
[321823335,1712536264317,-554.87,0.00020999,2]
[321823336,1712536264326,-554.87,0.00020999,2]
[321823337,1712536264336,-554.87,0.00020999,2]
[321823338,1712536264346,-554.87,0.00020999,2]
[321823339,1712536264356,-554.99757323,0.00020999,2]
[321823340,1712536264366,-591.65,0.00020999,2]
[321823341,1712536264376,-591.65,0.00020999,2]
[321823342,1712536264385,-591.65,0.00020999,2]
[321823343,1712536264395,-591.65,0.00020999,2]
[321823344,1712536264405,-591.65,0.00020999,2]
[321823345,1712536264415,-591.65,0.00020999,2]
[321823346,1712536264426,-591.65,0.00020999,2]
[321823347,1712536264436,-591.65,0.00020999,2]
[321823348,1712536264446,-591.65,0.00020999,2]
[321823349,1712536264457,-591.72800457,0.00020999,2]
[321823350,1712536264467,-500.0,0.00020999,2]
[321823351,1712536264476,-500.0,0.00020999,2]
[321823352,1712536264487,-500.0,0.00020999,2]